bitfinex-derivatives/quotes_SOLF0:USTF0_20260227
["timestamp","ask_amount","ask_price","bid_price","bid_amount"]
[1772213703755,9.51069191,81.399,81.343,9.0573375]
[1772213704251,11.0565,81.398,81.343,9.0573375]
[1772213704451,5.52827658,81.396,81.327,9.0573375]
[1772213704652,9.51069191,81.379,81.327,9.0573375]
[1772213704857,20.56969191,81.379,81.327,9.0573375]
[1772213705151,9.51069191,81.378,81.314,9.0573375]
[1772213705351,9.51069191,81.376,81.314,9.0573375]
[1772213706056,11.0615,81.361,81.297,20.1274375]
[1772213706258,9.41370225,81.36,81.297,9.0573375]
[1772213706547,9.51069191,81.359,81.297,9.0573375]
[1772213707255,9.51069191,81.359,81.298,20.1273375]
[1772213707650,9.51069191,81.359,81.299,9.0573375]
[1772213707849,11.0618,81.358,81.299,9.0573375]
[1772213708653,9.51069191,81.359,81.301,9.0573375]
[1772213709444,9.41370225,81.36,81.304,9.0573375]
[1772213709854,9.51069191,81.358,81.304,9.0573375]
[1772213710645,9.41370225,81.38,81.304,9.0573375]
[1772213710646,9.28989309,81.379,81.304,9.0573375]
[1772213711050,9.28989309,81.399,81.344,11.0637]
[1772213711251,9.28989309,81.421,81.345,9.54267781]
[1772213711957,9.28989309,81.421,81.347,9.54267781]
[1772213712365,11.054,81.416,81.35,9.54267781]
[1772213712554,9.28989309,81.415,81.35,9.54267781]
[1772213713655,11.0561,81.401,81.35,9.54267781]
[1772213713854,9.28989309,81.415,81.35,9.54267781]
[1772213714556,9.28989309,81.415,81.352,9.54267781]
[1772213714757,11.14937321,81.45,81.361,9.54267781]
[1772213714758,9.28989309,81.437,81.361,9.54267781]
[1772213715760,9.28989309,81.437,81.365,9.54267781]
[1772213716355,9.28989309,81.42,81.347,9.54267781]
[1772213718064,9.28989309,81.409,81.347,9.54267781]
[1772213718863,11.0556,81.404,81.347,9.54267781]
[1772213719466,11.0559,81.402,81.347,9.54267781]
[1772213719962,9.28989309,81.403,81.348,11.0631]
[1772213720358,9.28989309,81.403,81.347,9.54267781]
[1772213721177,11.0561,81.4,81.347,9.54267781]
[1772213721782,20.34599309,81.4,81.347,9.54267781]
[1772213722176,9.28989309,81.396,81.346,11.5]
[1772213722686,9.28989309,81.394,81.346,11.5]
[1772213723177,9.28989309,81.384,81.346,11.5]
[1772213723976,9.28989309,81.384,81.271,36.86]
[1772213723977,9.28989309,81.368,81.31,9.54267781]
[1772213724771,9.28989309,81.368,81.293,9.54267781]
[1772213724772,11.0623,81.355,81.293,9.54267781]
[1772213724976,9.28989309,81.355,81.293,9.54267781]
[1772213725578,9.28989309,81.355,81.293,20.61327781]
[1772213725779,9.28989309,81.355,81.294,9.54267781]
[1772213726373,11.0626,81.353,81.294,9.54267781]
[1772213727484,11.0636,81.345,81.294,9.54267781]
[1772213728079,11.0627,81.352,81.296,11.0702]
[1772213728279,15.13022318,81.39,81.26,55.41370225]
[1772213728280,9.28989309,81.372,81.297,9.54267781]
[1772213728680,11.0612,81.363,81.31,9.54267781]
[1772213728881,9.28989309,81.372,81.31,9.54267781]
[1772213729272,11.061,81.365,81.31,9.54267781]
[1772213730675,11.14937321,81.395,81.31,9.54267781]
[1772213730676,9.28989309,81.361,81.31,9.54267781]
[1772213730884,9.28989309,81.361,81.293,9.54267781]
[1772213731285,11.0625,81.354,81.294,20.61307781]
[1772213731485,11.0625,81.354,81.295,9.54267781]
[1772213731685,9.28989309,81.361,81.295,9.54267781]
[1772213732083,11.0618,81.359,81.298,11.0699]
[1772213732285,11.0618,81.359,81.298,20.61257781]
[1772213732783,9.04198461,81.369,81.302,9.54267781]
[1772213732983,9.41370225,81.37,81.302,9.54267781]
[1772213733387,11.0604,81.369,81.302,9.54267781]
[1772213734591,9.41370225,81.37,81.316,9.54267781]
[1772213735882,9.28989309,81.377,81.318,9.54267781]
[1772213737285,11.0601,81.371,81.318,9.54267781]
[1772213737886,9.28989309,81.377,81.32,9.54267781]
[1772213738886,11.0603,81.37,81.32,9.54267781]
[1772213739087,9.28989309,81.377,81.32,9.54267781]
[1772213739590,11.0603,81.37,81.32,9.54267781]
[1772213739884,9.04145564,81.389,81.32,9.54267781]
[1772213740090,11.056,81.402,81.346,11.0634]
[1772213740282,11.056,81.402,81.346,19.96025283]
[1772213740992,11.056,81.402,81.347,8.89685283]
[1772213741190,11.0567,81.396,81.347,8.89685283]
[1772213741492,9.57443727,81.406,81.347,8.89685283]
[1772213742591,9.57443727,81.406,81.348,10.26]
[1772213742793,11.0573,81.392,81.348,10.26]
[1772213743087,9.57443727,81.406,81.348,10.26]
[1772213743595,11.0594,81.377,81.348,10.26]
[1772213743891,9.57443727,81.376,81.31,8.89685283]
[1772213744993,9.4131353,81.39,81.323,8.89685283]
[1772213745592,9.57443727,81.385,81.292,8.89685283]
[1772213745895,9.57443727,81.369,81.292,8.89685283]
[1772213746097,9.57443727,81.367,81.292,8.89685283]
[1772213746296,9.4131353,81.35,81.292,8.89685283]
[1772213746595,9.57443727,81.349,81.292,8.89685283]
[1772213746997,9.04603171,81.348,81.27,8.89685283]
[1772213747188,9.57443727,81.347,81.27,8.89685283]
[1772213747393,9.57443727,81.343,81.273,8.89685283]
[1772213747694,9.57443727,81.355,81.273,8.89685283]
[1772213747900,9.57443727,81.339,81.273,8.89685283]
[1772213749892,11.0673,81.318,81.273,8.89685283]
[1772213751595,9.57443727,81.338,81.273,8.89685283]
[1772213753101,11.0651,81.334,81.273,8.89685283]
[1772213753296,9.57443727,81.355,81.273,8.89685283]
[1772213754501,9.57443727,81.355,81.289,8.89685283]
[1772213755003,11.0635,81.346,81.289,8.89685283]
[1772213755203,9.57443727,81.346,81.289,8.89685283]
[1772213755798,11.0654,81.332,81.289,8.89685283]
[1772213756800,11.0629,81.35,81.291,8.89685283]
[1772213757002,9.57443727,81.35,81.291,8.89685283]
[1772213757701,11.0655,81.331,81.275,8.89685283]
[1772213759004,9.57443727,81.35,81.277,8.89685283]
[1772213759908,11.0637,81.345,81.286,8.89685283]
[1772213760807,9.57443727,81.339,81.251,8.89685283]
[1772213761998,11.0664,81.325,81.272,8.89685283]
[1772213762803,11.0673,81.318,81.272,8.89685283]
[1772213763004,9.57443727,81.339,81.272,8.89685283]
[1772213763410,9.57443727,81.378,81.286,8.89685283]
[1772213763905,11.0623,81.355,81.305,8.89685283]
[1772213764804,9.57443727,81.377,81.307,8.89685283]
[1772213765910,11.06,81.372,81.311,8.89685283]
[1772213766510,9.57443727,81.377,81.311,8.89685283]
[1772213766712,9.57443727,81.377,81.313,8.89685283]
[1772213767106,9.57443727,81.376,81.313,8.89685283]
[1772213767409,9.57443727,81.374,81.303,8.89685283]
[1772213768003,9.0642154,81.373,81.31,8.89685283]
[1772213768211,9.57443727,81.371,81.31,8.89685283]
[1772213768509,9.57443727,81.369,81.31,8.89685283]
[1772213768710,9.57443727,81.367,81.31,8.89685283]
[1772213768910,9.57443727,81.365,81.31,8.89685283]
[1772213769110,9.57443727,81.363,81.31,8.89685283]
[1772213769310,9.57443727,81.361,81.292,19.96765283]
[1772213769516,9.57443727,81.359,81.292,8.89685283]
[1772213769806,9.57443727,81.358,81.292,8.89685283]
[1772213770107,9.0606278,81.357,81.292,8.89685283]
[1772213770513,9.0606278,81.357,81.299,11.0698]
[1772213770714,9.0606278,81.357,81.3,9.08732914]
[1772213771215,9.0606278,81.357,81.305,11.0689]
[1772213772303,9.0606278,81.373,81.306,9.08732914]
[1772213772507,9.0606278,81.373,81.31,9.08732914]
[1772213773612,9.0606278,81.373,81.319,9.08732914]
[1772213775318,11.06,81.372,81.319,9.08732914]
[1772213776213,9.0606278,81.373,81.319,9.08732914]
[1772213778422,9.0606278,81.373,81.32,11.067]
[1772213778613,9.0606278,81.373,81.319,9.08732914]
[1772213778918,9.0606278,81.373,81.227,172.3495]
[1772213778919,9.0606278,81.404,81.321,9.08732914]
[1772213779318,9.0606278,81.404,81.341,9.08732914]
[1772213780920,9.0606278,81.422,81.357,9.08732914]
[1772213781617,11.0538,81.418,81.359,9.08732914]
[1772213781812,9.0606278,81.419,81.321,9.08732914]
[1772213782012,9.0606278,81.419,81.341,9.08732914]
[1772213782316,9.0606278,81.419,81.356,9.08732914]
[1772213783511,9.0606278,81.409,81.356,9.08732914]
[1772213784315,9.0606278,81.409,81.321,9.08732914]
[1772213784520,9.0606278,81.405,81.34,9.08732914]
[1772213785923,9.0606278,81.405,81.347,9.08732914]
[1772213786522,9.0606278,81.405,81.355,11.0622]
[1772213786721,9.0606278,81.405,81.356,9.08732914]
[1772213787026,9.0606278,81.422,81.366,9.08732914]
[1772213787223,9.0606278,81.44,81.366,9.08732914]
[1772213787720,9.0606278,81.44,81.388,11.0577]
[1772213788223,9.0606278,81.44,81.388,9.08732914]
[1772213789119,9.0606278,81.44,81.361,9.08732914]
[1772213789523,9.4131353,81.48,81.391,9.08732914]
[1772213789524,9.0606278,81.458,81.391,9.08732914]
[1772213790929,9.4131353,81.47,81.391,9.08732914]
[1772213790930,9.0606278,81.456,81.391,9.08732914]
[1772213791132,5.52661151,81.466,81.372,9.08732914]
[1772213791133,9.0606278,81.449,81.372,9.08732914]
[1772213791524,9.4131353,81.45,81.372,9.08732914]
[1772213791525,9.0606278,81.434,81.372,9.08732914]
[1772213791925,9.0606278,81.448,81.382,9.08732914]
[1772213792429,9.0606278,81.436,81.382,9.08732914]
[1772213793727,9.0606278,81.459,81.385,9.08732914]
[1772213794224,9.0606278,81.459,81.402,9.08732914]
[1772213794931,245.82,81.489,81.402,9.08732914]
[1772213794932,9.0606278,81.458,81.402,9.08732914]
[1772213796128,9.0606278,81.476,81.402,9.08732914]
[1772213796329,9.0606278,81.476,81.414,9.08732914]
[1772213797725,9.0606278,81.466,81.414,9.08732914]
[1772213798929,11.0475,81.464,81.414,9.08732914]
[1772213799432,11.0464,81.472,81.414,9.08732914]
[1772213800738,9.14147194,81.482,81.422,8.63307887]
[1772213800930,8.91908846,81.499,81.422,8.63307887]
[1772213802031,19.96188846,81.499,81.436,8.63307887]
[1772213803328,8.91908846,81.499,81.439,8.63307887]
[1772213803936,11.0438,81.492,81.439,8.63307887]
[1772213804130,8.91908846,81.499,81.439,8.63307887]
[1772213804536,8.91908846,81.499,81.443,8.63307887]
[1772213804934,8.91908846,81.515,81.443,8.63307887]
[1772213806033,11.0418,81.506,81.446,8.63307887]
[1772213806234,19.96088846,81.506,81.446,8.63307887]
[1772213806626,9.38734888,81.52,81.446,8.63307887]
[1772213806627,8.91908846,81.505,81.446,8.63307887]
[1772213807033,8.91908846,81.503,81.446,8.63307887]
[1772213807936,11.0436,81.493,81.446,8.63307887]
[1772213808131,8.91908846,81.503,81.446,8.63307887]
[1772213808926,8.91908846,81.485,81.431,8.63307887]
[1772213809329,8.91908846,81.501,81.431,8.63307887]
[1772213809531,8.91908846,81.494,81.433,8.63307887]
[1772213809732,8.91908846,81.489,81.417,8.63307887]
[1772213809933,8.91908846,81.47,81.417,8.63307887]
[1772213810939,11.0477,81.463,81.417,8.63307887]
[1772213811238,8.91908846,81.47,81.417,8.63307887]
[1772213811937,19.96568846,81.47,81.417,8.63307887]
[1772213812634,8.91908846,81.467,81.417,8.63307887]
[1772213813339,11.0483,81.458,81.417,8.63307887]
[1772213813539,8.91908846,81.467,81.37,9.38734888]
[1772213813540,8.91908846,81.467,81.402,8.63307887]
[1772213814142,19.96728846,81.459,81.402,8.63307887]
[1772213814349,8.91908846,81.458,81.402,8.63307887]
[1772213814538,8.91908846,81.449,81.387,8.63307887]
[1772213814938,8.91908846,81.444,81.403,10.27]
[1772213815246,8.91908846,81.458,81.404,8.63307887]
[1772213815435,9.38734888,81.47,81.404,8.63307887]
[1772213815436,19.96758846,81.457,81.404,8.63307887]
[1772213815636,8.91908846,81.456,81.404,8.63307887]
[1772213815836,8.91908846,81.456,81.403,10.27]
[1772213816042,11.0487,81.455,81.404,8.63307887]
[1772213816444,8.91908846,81.456,81.404,8.63307887]
[1772213816737,8.91908846,81.455,81.403,10.27]
[1772213817140,11.0508,81.44,81.403,10.27]
[1772213817540,8.91908846,81.439,81.403,10.27]
[1772213817846,9.38734888,81.44,81.374,8.63307887]
[1772213817847,8.91908846,81.425,81.374,8.63307887]
[1772213818241,8.91908846,81.425,81.331,8.63307887]
[1772213818845,8.91908846,81.417,81.354,8.63307887]
[1772213820851,11.0565,81.398,81.354,8.63307887]
[1772213821049,8.91908846,81.4,81.329,8.63307887]
[1772213821050,8.91908846,81.397,81.329,8.63307887]
[1772213821244,9.38734888,81.38,81.29,9.38734888]
[1772213821449,8.91908846,81.377,81.314,8.63307887]
[1772213821748,8.91908846,81.377,81.33,8.35]
[1772213822638,11.0594,81.376,81.33,8.35]
[1772213822838,8.91908846,81.375,81.33,8.35]
[1772213823352,22.1109,81.406,81.296,8.63307887]
[1772213823353,8.91908846,81.353,81.296,8.63307887]
[1772213823750,11.0627,81.352,81.296,8.63307887]
[1772213823946,8.91908846,81.353,81.296,8.63307887]
[1772213825746,8.91908846,81.344,81.269,8.63307887]
[1772213825950,8.91908846,81.359,81.269,8.63307887]
[1772213826244,171.9281,81.427,81.304,8.63307887]
[1772213826245,8.91908846,81.376,81.304,8.63307887]
[1772213826846,11.0608,81.366,81.304,8.63307887]
[1772213827949,9.38734888,81.36,81.251,22.87024655]
[1772213828140,8.91908846,81.359,81.261,8.63307887]
[1772213828945,11.0644,81.34,81.271,8.63307887]
[1772213830248,9.38734888,81.36,81.284,8.91828497]
[1772213830551,8.38927941,81.378,81.284,8.91828497]
[1772213831145,8.38927941,81.358,81.301,8.91828497]
[1772213831549,8.38927941,81.358,81.285,8.91828497]
[1772213832149,11.0646,81.338,81.285,8.91828497]
[1772213832350,8.38927941,81.358,81.285,8.91828497]
[1772213832746,8.38927941,81.358,81.288,8.91828497]
[1772213833347,8.38927941,81.339,81.288,8.91828497]
[1772213833843,8.38927941,81.339,81.27,11.0738]
[1772213834048,8.38927941,81.339,81.271,8.91828497]
[1772213834250,8.38927941,81.319,81.271,8.91828497]
[1772213834754,8.38927941,81.319,81.255,8.91828497]
[1772213835149,8.38927941,81.319,81.256,8.91828497]
[1772213835547,8.38927941,81.319,81.264,11.0745]
[1772213835750,9.38734888,81.32,81.264,8.91828497]
[1772213835942,8.38927941,81.335,81.264,8.91828497]
[1772213836352,8.38927941,81.335,81.285,11.0717]
[1772213836546,8.38927941,81.335,81.279,8.91828497]
[1772213837351,9.38734888,81.36,81.279,8.91828497]
[1772213837750,17.77662829,81.36,81.279,8.91828497]
[1772213838049,17.77662829,81.36,81.3,19.98788497]
[1772213838256,17.77662829,81.36,81.301,8.91828497]
[1772213839256,8.38927941,81.374,81.303,8.91828497]
[1772213839855,8.38927941,81.374,81.306,8.91828497]
[1772213841556,8.38927941,81.365,81.306,8.91828497]
[1772213842353,9.38734888,81.38,81.306,8.91828497]
[1772213842848,8.38927941,81.382,81.331,8.91828497]
[1772213843455,19.44557941,81.4,81.331,8.91828497]
[1772213843758,8.38927941,81.399,81.331,8.91828497]
[1772213843951,8.38927941,81.394,81.331,8.91828497]
[1772213844155,9.38734888,81.41,81.331,8.91828497]
[1772213844156,8.38927941,81.389,81.331,8.91828497]
[1772213844457,8.38927941,81.389,81.333,8.91828497]
[1772213844860,8.38927941,81.409,81.333,8.91828497]
[1772213845054,8.38927941,81.409,81.353,8.91828497]
[1772213845859,8.38927941,81.409,81.321,8.91828497]
[1772213846255,11.0563,81.399,81.336,11.0647]
[1772213846456,8.38927941,81.409,81.337,8.91828497]
[1772213846854,11.0571,81.393,81.337,8.91828497]
[1772213847956,11.0558,81.403,81.341,8.91828497]
[1772213848460,8.38927941,81.425,81.341,8.91828497]
[1772213848656,8.38927941,81.425,81.305,22.138]
[1772213848657,8.38927941,81.419,81.321,8.91828497]
[1772213849154,11.0567,81.396,81.331,8.91828497]
[1772213849749,11.0577,81.389,81.334,8.91828497]
[1772213850362,8.38927941,81.4,81.334,8.91828497]
[1772213850563,8.38927941,81.4,81.336,8.91828497]
[1772213850861,8.38927941,81.429,81.336,8.91828497]
[1772213851755,8.38927941,81.422,81.354,8.91828497]
[1772213852358,8.38927941,81.419,81.354,8.91828497]
[1772213852753,8.38927941,81.419,81.345,11.0635]
[1772213852953,8.38927941,81.419,81.32,9.38734888]
[1772213852954,8.38927941,81.419,81.346,8.91828497]
[1772213853660,8.38927941,81.418,81.355,11.0622]
[1772213855959,8.38927941,81.415,81.355,11.0622]
[1772213856656,8.38927941,81.411,81.346,19.98168497]
[1772213856861,8.38927941,81.409,81.346,19.98168497]
[1772213857958,8.38927941,81.406,81.346,19.98168497]
[1772213858454,8.38927941,81.406,81.34,8.91828497]
[1772213859369,8.38927941,81.406,81.343,8.79353356]
[1772213859668,8.38927941,81.406,81.345,8.79353356]
[1772213860274,8.96746119,81.404,81.321,8.44614192]
[1772213861971,11.057,81.394,81.327,8.44614192]
[1772213862273,8.96746119,81.404,81.327,8.44614192]
[1772213862566,17.89857471,81.421,81.356,8.44614192]
[1772213862767,8.96746119,81.421,81.356,8.44614192]
[1772213863964,20.02086119,81.421,81.356,8.44614192]
[1772213864768,8.96506485,81.439,81.359,8.44614192]
[1772213864970,8.96746119,81.439,81.361,8.44614192]
[1772213865867,8.96746119,81.411,81.361,8.44614192]
[1772213866067,8.96746119,81.411,81.321,8.44614192]
[1772213866268,8.96746119,81.399,81.321,8.44614192]
[1772213866776,8.96746119,81.383,81.322,8.44614192]
[1772213867670,9.40749985,81.42,81.322,8.44614192]
[1772213867671,8.96746119,81.412,81.322,8.44614192]
[1772213868369,8.96746119,81.412,81.343,8.44614192]
[1772213869173,8.96746119,81.409,81.343,8.44614192]
[1772213869969,8.96746119,81.406,81.343,8.44614192]
[1772213871774,8.96746119,81.406,81.345,8.44614192]
[1772213872574,8.96746119,81.406,81.349,8.44614192]
[1772213872770,11.27914077,81.435,81.349,8.44614192]
[1772213872771,8.96746119,81.421,81.349,8.44614192]
[1772213873379,8.96746119,81.436,81.368,8.44614192]
[1772213874479,8.96746119,81.434,81.369,8.44614192]
[1772213875177,8.96746119,81.426,81.369,8.44614192]
[1772213875582,8.96746119,81.449,81.369,8.44614192]
[1772213875783,8.96746119,81.437,81.378,8.44614192]
[1772213876876,8.96746119,81.427,81.351,8.44614192]
[1772213877273,8.96746119,81.445,81.351,8.44614192]
[1772213878682,11.0522,81.43,81.377,8.44614192]
[1772213880084,11.0522,81.43,81.379,8.44614192]
[1772213880282,20.01866119,81.437,81.379,8.44614192]
[1772213880482,8.96746119,81.437,81.379,8.44614192]
[1772213880879,8.96746119,81.437,81.387,8.44614192]
[1772213882484,8.99176927,81.436,81.373,8.44614192]
[1772213882787,11.0518,81.433,81.376,8.44614192]
[1772213883388,11.0524,81.428,81.376,8.44614192]
[1772213883778,11.27914077,81.453,81.376,8.44614192]
[1772213883779,8.99445125,81.448,81.376,8.44614192]
[1772213883982,8.96746119,81.451,81.396,8.44614192]
[1772213884886,11.0494,81.45,81.396,8.44614192]
[1772213886190,9.01657126,81.449,81.396,8.44614192]
[1772213886385,11.0494,81.45,81.396,8.44614192]
[1772213886583,9.01549777,81.449,81.396,8.44614192]
[1772213886790,9.01520919,81.448,81.396,8.44614192]
[1772213886989,11.0494,81.45,81.396,8.44614192]
[1772213887184,9.01542001,81.449,81.396,8.44614192]
[1772213887392,9.01542001,81.448,81.396,8.44614192]
[1772213887592,11.0494,81.45,81.396,8.44614192]
[1772213887794,9.01567028,81.449,81.396,8.44614192]
[1772213887988,8.96746119,81.452,81.396,8.44614192]
[1772213888295,8.96746119,81.478,81.421,8.44614192]
[1772213888495,8.96746119,81.476,81.421,8.44614192]
[1772213888797,8.96746119,81.476,81.4,9.40749985]
[1772213888798,8.96746119,81.505,81.429,6.7695208]
[1772213889293,8.96746119,81.505,81.442,6.81667533]
[1772213890597,8.69469425,81.537,81.462,6.84781281]
[1772213890799,8.69469425,81.529,81.462,6.84781281]
[1772213891304,8.69469425,81.529,81.464,6.99865604]
[1772213892402,8.69469425,81.529,81.474,7.0117784]
[1772213893905,8.69469425,81.529,81.458,6.98896752]
[1772213894698,8.69469425,81.529,81.468,6.98896752]
[1772213895206,8.69469425,81.554,81.476,7.0081353]
[1772213895701,8.69469425,81.549,81.476,7.0081353]
[1772213896506,5.52169258,81.546,81.476,7.0081353]
[1772213896699,5.52169258,81.546,81.398,171.9876]
[1772213896700,8.69469425,81.529,81.459,7.02063416]
[1772213896899,8.69469425,81.529,81.431,7.05811199]
[1772213897097,2.13505447,81.569,81.465,7.05811199]
[1772213897295,8.69469425,81.568,81.471,7.05811199]
[1772213897607,8.69469425,81.568,81.494,11.0433]
[1772213897905,8.69469425,81.568,81.471,7.05811199]
[1772213898304,8.69469425,81.565,81.5,11.0424]
[1772213898501,8.69469425,81.549,81.475,7.07035971]
[1772213899407,8.69469425,81.529,81.454,6.9989201]
[1772213901807,8.69469425,81.529,81.463,11.0476]
[1772213903509,8.69469425,81.529,81.47,11.0466]
[1772213903707,8.69469425,81.529,81.464,6.71008724]
[1772213904809,11.0365,81.545,81.45,9.40749985]
[1772213904810,8.69469425,81.545,81.482,6.72125143]
[1772213905212,8.69469425,81.545,81.484,6.71198587]
[1772213905806,8.69469425,81.564,81.497,17.75488587]
[1772213906000,8.69469425,81.564,81.442,36.86]
[1772213906001,8.69469425,81.564,81.498,6.7224102]
[1772213906210,8.69469425,81.562,81.498,6.7224102]
[1772213907313,8.69469425,81.555,81.498,6.7224102]
[1772213907811,8.69469425,81.571,81.501,6.79423432]
[1772213908206,11.0332,81.57,81.509,6.80490932]
[1772213908409,8.69469425,81.569,81.509,6.80490932]
[1772213909916,8.69469425,81.569,81.511,6.30226212]
[1772213910806,8.69469425,81.551,81.438,6.30226212]
[1772213911011,8.69469425,81.549,81.461,6.18872357]
[1772213911211,8.69469425,81.549,81.47,17.23522357]
[1772213911510,8.69469425,81.549,81.44,9.40749985]
[1772213911511,8.69469425,81.52,81.441,6.18872357]
[1772213911919,8.69469425,81.539,81.462,6.19863911]
[1772213912310,11.0398,81.521,81.463,11.0475]
[1772213912511,8.69469425,81.539,81.464,6.198808]
[1772213913116,8.69469425,81.522,81.464,6.198808]
[1772213914118,8.69469425,81.519,81.441,6.65705993]
[1772213914319,8.69469425,81.519,81.455,6.65705993]
[1772213914715,8.69469425,81.519,81.421,6.65705993]
[1772213915216,8.69469425,81.493,81.421,6.65705993]
[1772213915615,8.69469425,81.493,81.375,22.1191]
[1772213915616,8.69469425,81.479,81.402,6.8758134]
[1772213916220,11.0478,81.462,81.404,11.0556]
[1772213916419,8.69469425,81.461,81.402,6.8758134]
[1772213916718,8.69469425,81.459,81.402,6.8758134]
[1772213917415,8.69469425,81.459,81.385,6.90166932]
[1772213917615,8.69469425,81.442,81.385,6.90166932]
[1772213918521,8.69469425,81.442,81.386,6.92944806]
[1772213918926,9.19021004,81.434,81.369,18.02388774]
[1772213919118,9.19021004,81.434,81.37,6.96368774]
[1772213919919,9.19021004,81.434,81.372,6.97285851]
[1772213920423,11.0517,81.433,81.374,18.03504727]
[1772213920623,8.66016523,81.432,81.374,6.97544727]
[1772213920819,8.66016523,81.432,81.341,6.97544727]
[1772213921025,8.66016523,81.413,81.341,6.97544727]
[1772213922022,8.66016523,81.407,81.341,6.97544727]
[1772213924222,8.66016523,81.407,81.344,11.0637]
[1772213924521,8.66016523,81.407,81.341,6.97544727]
[1772213924725,8.66016523,81.399,81.324,6.9906484]
[1772213926126,8.66016523,81.399,81.333,11.0651]
[1772213926528,8.66016523,81.399,81.324,6.9906484]
[1772213927624,8.66016523,81.399,81.335,7.08272793]
[1772213928130,8.66016523,81.397,81.319,11.0671]
[1772213928927,8.66016523,81.397,81.32,7.12327727]
[1772213929521,8.66016523,81.395,81.322,11.0666]
[1772213929728,8.66016523,81.395,81.323,7.12327727]
[1772213930629,8.66016523,81.393,81.323,7.12327727]
[1772213931625,8.66016523,81.393,81.325,11.0663]
[1772213932024,8.66016523,81.408,81.326,7.20171992]
[1772213933227,8.66016523,81.424,81.351,7.22411006]
[1772213933825,8.66016523,81.424,81.363,7.22411006]
[1772213934130,8.66016523,81.443,81.363,7.22411006]
[1772213934934,8.66016523,81.459,81.395,18.36096205]
[1772213935133,8.66016523,81.459,81.374,7.30426205]
[1772213936033,11.0508,81.44,81.377,7.31202287]
[1772213936628,8.66016523,81.448,81.379,7.31202287]
[1772213937336,8.66016523,81.444,81.362,7.31104528]
[1772213937936,5.52700058,81.456,81.362,7.31104528]
[1772213937937,8.66016523,81.439,81.362,7.31104528]
[1772213939936,8.66016523,81.43,81.363,11.0611]
[1772213940738,9.41633741,81.42,81.354,11.0623]
[1772213940927,8.66016523,81.419,81.354,11.0623]
[1772213941333,8.66016523,81.411,81.346,7.23800367]
[1772213942334,36.86,81.459,81.365,7.27524379]
[1772213942335,19.71256523,81.428,81.365,7.27524379]
[1772213942541,8.66016523,81.427,81.365,7.27524379]
[1772213943139,8.66016523,81.459,81.38,7.3265464]
[1772213943538,8.66016523,81.431,81.368,7.3265464]
[1772213945133,8.66016523,81.428,81.369,11.0603]
[1772213947236,8.66016523,81.444,81.373,7.33659833]
[1772213948037,8.66016523,81.46,81.394,7.34325698]
[1772213948640,8.66016523,81.479,81.401,7.34325698]
[1772213949544,8.66016523,81.468,81.401,7.34325698]
[1772213950240,8.4785411,81.456,81.401,7.34325698]
[1772213951747,11.0498,81.447,81.401,7.34325698]
[1772213951946,8.4785411,81.456,81.401,7.34325698]
[1772213952345,8.4785411,81.456,81.382,7.30840325]
[1772213952750,8.4785411,81.455,81.382,7.30840325]
[1772213953351,9.41633741,81.46,81.382,7.30840325]
[1772213953352,8.4785411,81.445,81.382,7.30840325]
[1772213954655,8.4785411,81.445,81.369,11.0602]
[1772213955050,8.4785411,81.442,81.373,11.0598]
[1772213955557,8.4785411,81.439,81.351,7.33698578]
[1772213955753,8.4785411,81.429,81.351,7.33698578]
[1772213957655,8.4785411,81.429,81.33,9.41633741]
[1772213957656,8.4785411,81.427,81.364,7.35072217]
[1772213958151,8.4785411,81.427,81.33,9.41633741]
[1772213958152,8.4785411,81.427,81.367,18.41696309]
[1772213958352,8.4785411,81.427,81.368,7.35636309]
[1772213958658,8.4785411,81.427,81.37,11.0602]
[1772213958861,8.4785411,81.427,81.368,7.35636309]
[1772213959052,8.4785411,81.425,81.368,7.35636309]
[1772213959250,8.4785411,81.425,81.36,11.0614]
[1772213959655,8.4785411,81.417,81.356,7.26220606]
[1772213961058,11.0545,81.413,81.356,7.26220606]
[1772213961651,8.4785411,81.417,81.358,7.28471961]
[1772213962960,19.5325411,81.416,81.36,11.0615]
[1772213963270,8.4785411,81.433,81.361,7.2963491]
[1772213963762,8.4785411,81.432,81.377,11.0592]
[1772213965064,11.052,81.431,81.377,11.0592]
[1772213965263,8.4785411,81.43,81.377,11.0592]
[1772213966467,8.4785411,81.451,81.396,11.0567]
[1772213966871,8.4785411,81.451,81.392,7.31330317]
[1772213967064,8.4785411,81.451,81.399,11.0562]
[1772213967767,8.4785411,81.451,81.4,7.29994271]
[1772213968868,8.4785411,81.448,81.384,7.30496747]
[1772213969367,8.4785411,81.439,81.384,7.30496747]
[1772213969764,9.41633741,81.47,81.384,7.30496747]
[1772213969765,8.4785411,81.452,81.396,11.0566]
[1772213970867,8.4785411,81.452,81.404,11.0556]
[1772213971270,8.4785411,81.452,81.398,7.30830217]
[1772213971570,8.4785411,81.449,81.371,7.30830217]
[1772213972262,8.4785411,81.43,81.373,7.31310174]
[1772213973466,5.52582902,81.446,81.373,7.31310174]